fUST/lending_fUST_20250826
["ID","MTS","AMOUNT","RATE_DAILY","PERIOD"]
[381440570,1756198248401,-480.0,0.00041095,30]
[381440571,1756198248411,-480.0,0.00041095,30]
[381440572,1756198248420,-661.58,0.00041095,30]
[381440573,1756198248430,-554.61,0.00041095,30]
[381440574,1756198248440,-480.0,0.00041095,30]
[381440575,1756198248449,-1054.84,0.00041095,30]
[381440576,1756198248459,-1041.46,0.00041095,30]
[381440577,1756198248469,-650.84,0.00041095,30]
[381440578,1756198248478,-480.0,0.00041095,30]
[381440579,1756198248487,-480.0,0.00041095,30]
[381440580,1756198248496,-973.03,0.00041095,30]
[381440581,1756198248505,-480.0,0.00041095,30]
[381440582,1756198248514,-480.0,0.00041095,30]
[381440583,1756198248524,-480.0,0.00041095,30]
[381440584,1756198248534,-1134.98,0.00041095,30]
[381440585,1756198248544,-844.88,0.00041095,30]
[381440586,1756198248553,-5251.84,0.00041095,30]
[381440587,1756198248562,-716.2,0.00041095,30]
[381440588,1756198248571,-480.0,0.00041095,30]
[381440589,1756198248580,-617.19,0.00041095,30]
[381440590,1756198248590,-480.0,0.00041095,30]
[381440591,1756198248599,-1065.75,0.00041095,30]
[381440592,1756198248609,-480.0,0.00041095,30]
[381440593,1756198248619,-1267.47,0.00041095,30]
[381440594,1756198248628,-626.19,0.00041095,30]
[381440595,1756198248637,-480.0,0.00041095,30]
[381440596,1756198248647,-10030.08,0.00041095,30]
[381440597,1756198248656,-480.0,0.00041095,30]
[381440598,1756198248666,-17788.27,0.00041095,30]
[381440599,1756198248675,-480.0,0.00041095,30]
[381440600,1756198248684,-480.0,0.00041095,30]
[381440601,1756198248693,-12265.72,0.00041095,30]
[381440602,1756198248703,-480.0,0.00041095,7]
[381440603,1756198248713,-480.0,0.00041095,30]
[381440604,1756198248722,-571.01,0.00041095,14]
[381440605,1756198248732,-480.0,0.00041095,2]
[381440606,1756198248742,-2077.67,0.00041095,30]
[381440607,1756198248752,-480.0,0.00041095,30]
[381440608,1756198248761,-480.0,0.00041095,30]
[381440609,1756198248771,-480.0,0.00041095,30]
[381440610,1756198248781,-613.44,0.00041095,30]
[381440611,1756198248790,-480.0,0.00041095,30]
[381440612,1756198248800,-933.93,0.00041095,30]
[381440613,1756198248812,-480.0,0.00041095,30]
[381440614,1756198248821,-480.0,0.00041095,2]
[381440615,1756198248831,-480.0,0.00041095,30]
[381440616,1756198248841,-546.36,0.00041095,30]
[381440617,1756198248851,-1329.41,0.00041095,30]
[381440618,1756198248861,-480.0,0.00041095,30]
[381440619,1756198248871,-868.7,0.00041095,30]
[381440620,1756198248884,-2107.15,0.00041095,30]
[381440621,1756198248894,-1899.84,0.00041095,30]
[381440622,1756198248903,-642.77,0.00041095,30]
[381440623,1756198248913,-183.501746,0.00041095,30]
[381440624,1756198248923,-480.0,0.00041095,30]
[381440625,1756198248933,-6087.08,0.00041095,30]
[381440626,1756198248943,-543.69479686,0.00041095,30]
[381440627,1756198248953,-480.0,0.00041095,30]
[381440628,1756198248963,-480.0,0.00041095,30]
[381440629,1756198248973,-183.501746,0.00041095,30]
[381440630,1756198248983,-3019.63,0.00041095,30]
[381440631,1756198248993,-183.501746,0.00041095,30]
[381440632,1756198249003,-183.501754,0.00041095,30]
[381440633,1756198249012,-1000.0,0.00041228,30]
[381440634,1756198249022,-500.0,0.0004123,30]
[381440635,1756198249031,-500.0,0.00041243,30]
[381440637,1756198249041,-916.0,0.000413,29]
[381440638,1756198249051,-216.65883376,0.00041359,37]
[381440640,1756198249062,-804.69,0.00041369,30]
[381440641,1756198249071,-480.0,0.00041369,30]
[381440642,1756198249081,-480.0,0.00041369,30]
[381440643,1756198249091,-480.0,0.00041369,30]
[381440644,1756198249100,-480.0,0.00041369,30]
[381440645,1756198249110,-480.0,0.00041369,30]
[381440646,1756198249121,-480.0,0.00041369,30]
[381440647,1756198249130,-726.39,0.00041369,30]
[381440648,1756198249140,-480.0,0.00041369,30]
[381440649,1756198249150,-480.0,0.00041369,30]
[381440650,1756198249162,-496.31,0.00041369,30]
[381440651,1756198249171,-480.0,0.00041369,30]
[381440652,1756198249182,-702.1,0.00041369,30]
[381440653,1756198249192,-480.0,0.00041369,30]
[381440654,1756198249203,-615.71,0.00041369,30]
[381440655,1756198249213,-480.0,0.00041369,30]
[381440656,1756198249223,-734.84,0.00041369,30]
[381440657,1756198249233,-570.78818746,0.00041369,30]
[381440658,1756198249243,-480.0,0.00041369,30]
[381440659,1756198249253,-480.0,0.00041369,30]
[381440660,1756198249264,-480.0,0.00041369,30]
[381440661,1756198249274,-1328.78,0.00041369,30]
[381440662,1756198249285,-480.0,0.00041369,30]
[381440663,1756198249295,-480.0,0.00041369,30]
[381440664,1756198249305,-480.0,0.00041369,30]
[381440665,1756198249315,-657.53,0.00041369,30]
[381440666,1756198249324,-480.0,0.00041369,30]
[381440667,1756198249334,-2642.78,0.00041369,30]
[381440668,1756198249344,-480.0,0.00041369,30]
[381440669,1756198249354,-480.0,0.00041369,30]
[381440670,1756198249364,-480.0,0.00041369,30]
[381440671,1756198249374,-480.0,0.00041369,30]
[381440672,1756198249384,-526.48,0.00041369,30]
[381440673,1756198249394,-1616.65,0.00041369,30]
[381440674,1756198249404,-559.52,0.00041369,30]
[381440675,1756198249414,-480.0,0.00041369,30]
[381440676,1756198249424,-1018.43,0.00041369,30]
[381440677,1756198249434,-480.0,0.00041369,30]
[381440678,1756198249443,-480.0,0.00041369,30]
[381440679,1756198249454,-480.0,0.00041369,30]
[381440680,1756198249463,-970.15,0.00041369,30]
[381440681,1756198249474,-3417.9,0.00041369,30]
[381440682,1756198249483,-480.0,0.00041369,30]
[381440683,1756198249493,-568.04,0.00041369,30]
[381440684,1756198249503,-480.0,0.00041369,30]
[381440685,1756198249512,-620.61,0.00041369,30]
[381440686,1756198249522,-480.0,0.00041369,30]
[381440687,1756198249532,-1673.41,0.00041369,30]
[381440688,1756198249542,-480.0,0.00041369,30]
[381440689,1756198249552,-480.0,0.00041369,30]
[381440690,1756198249562,-480.0,0.00041369,30]
[381440691,1756198249571,-480.0,0.00041369,30]
[381440692,1756198249581,-480.0,0.00041369,30]
[381440693,1756198249590,-1020.49,0.00041369,30]
[381440694,1756198249600,-480.0,0.00041369,30]
[381440695,1756198249610,-646.09,0.00041369,30]
[381440696,1756198249620,-480.0,0.00041369,30]
[381440697,1756198249629,-480.0,0.00041369,30]
[381440698,1756198249639,-537.13,0.00041369,30]
[381440699,1756198249648,-480.0,0.00041369,30]
[381440700,1756198249658,-597.89,0.00041369,30]
[381440701,1756198249668,-480.0,0.00041369,30]
[381440702,1756198249677,-480.0,0.00041369,30]
[381440703,1756198249687,-696.06,0.00041369,30]
[381440704,1756198249696,-480.0,0.00041369,30]
[381440705,1756198249706,-1606.89,0.00041369,30]
[381440706,1756198249716,-725.66,0.00041369,30]
[381440707,1756198249726,-690.29,0.00041369,30]
[381440708,1756198249736,-480.0,0.00041369,30]
[381440709,1756198249745,-670.64,0.00041369,30]
[381440710,1756198249755,-480.0,0.00041369,30]
[381440711,1756198249764,-480.0,0.00041369,30]
[381440712,1756198249774,-480.0,0.00041369,30]
[381440713,1756198249783,-480.0,0.00041369,30]
[381440714,1756198249793,-480.0,0.00041369,30]
[381440715,1756198249803,-480.0,0.00041369,30]
[381440716,1756198249812,-6191.39,0.00041369,30]
[381440717,1756198249823,-480.0,0.00041369,30]
[381440718,1756198249832,-480.0,0.00041369,30]
[381440719,1756198249842,-480.0,0.00041369,30]
[381440720,1756198249852,-558.44,0.00041369,30]
[381440721,1756198249861,-480.0,0.00041369,30]
[381440723,1756198249871,-850.15,0.00041369,30]
[381440725,1756198249886,-1001.28,0.00041369,30]
[381440728,1756198249896,-1485.36,0.00041369,30]
[381440729,1756198249906,-480.0,0.00041369,30]
[381440730,1756198249916,-480.0,0.00041369,30]
[381440731,1756198249926,-480.0,0.00041369,30]
[381440732,1756198249936,-743.23,0.00041369,30]
[381440733,1756198249945,-265.35772828,0.00041369,30]
[381440734,1756198249956,-480.0,0.00041369,30]
[381440735,1756198249966,-745.31,0.00041369,30]
[381440736,1756198249975,-480.0,0.00041369,30]
[381440737,1756198249983,-601.49,0.00041369,30]
[381440738,1756198249993,-480.0,0.00041369,30]
[381440739,1756198250003,-2704.59,0.00041369,30]
[381440740,1756198250012,-607.47,0.00041369,30]
[381440741,1756198250023,-480.0,0.00041369,30]
[381440742,1756198250033,-480.0,0.00041369,30]
[381440744,1756198250042,-480.0,0.00041369,30]
[381440746,1756198250052,-480.0,0.00041369,30]
[381440748,1756198250062,-524.61,0.00041369,30]
[381440750,1756198250071,-537.83,0.00041369,30]
[381440752,1756198250081,-480.0,0.00041369,30]
[381440754,1756198250090,-480.0,0.00041369,30]
[381440756,1756198250100,-552.2,0.00041369,7]
[381440758,1756198250109,-480.0,0.00041369,30]
[381440760,1756198250119,-560.66,0.00041369,30]
[381440762,1756198250128,-480.0,0.00041369,30]
[381440764,1756198250138,-480.0,0.00041369,30]
[381440766,1756198250148,-592.41,0.00041369,30]
[381440768,1756198250157,-731.04,0.00041369,30]
[381440770,1756198250169,-480.0,0.00041369,30]
[381440772,1756198250178,-480.0,0.00041369,30]
[381440774,1756198250188,-480.0,0.00041369,30]
[381440776,1756198250197,-1198.19,0.00041369,30]
[381440778,1756198250208,-480.0,0.00041369,30]
[381440781,1756198250218,-480.0,0.00041369,30]
[381440783,1756198250227,-689.41,0.00041369,30]
[381440785,1756198250237,-480.0,0.00041369,30]
[381440787,1756198250246,-480.0,0.00041369,30]
[381440789,1756198250256,-555.42,0.00041369,30]
[381440791,1756198250266,-480.0,0.00041369,30]
[381440793,1756198250276,-480.0,0.00041369,30]
[381440795,1756198250287,-2805.44,0.00041369,30]
[381440797,1756198250296,-1797.54,0.00041369,30]
[381440799,1756198250306,-7615.41,0.00041369,30]
[381440801,1756198250316,-673.23,0.00041369,30]
[381440803,1756198250326,-480.0,0.00041369,30]
[381440805,1756198250336,-480.0,0.00041369,30]
[381440807,1756198250347,-480.0,0.00041369,30]
[381440809,1756198250356,-1484.34,0.00041369,30]
[381440812,1756198250367,-1335.61,0.00041369,30]
[381440814,1756198250379,-480.0,0.00041369,30]
[381440815,1756198250389,-491.56,0.00041369,30]
[381440816,1756198250398,-587.88,0.00041369,30]
[381440817,1756198250408,-480.0,0.00041369,30]
[381440818,1756198250418,-480.0,0.00041369,30]
[381440819,1756198250428,-480.0,0.00041369,30]
[381440820,1756198250438,-701.07,0.00041369,30]
[381440821,1756198250449,-480.0,0.00041369,30]
[381440822,1756198250459,-1010.95,0.00041369,30]
[381440823,1756198250469,-577.17,0.00041369,20]
[381440824,1756198250479,-480.0,0.00041369,30]
[381440825,1756198250489,-480.0,0.00041369,30]
[381440826,1756198250498,-724.14,0.00041369,30]
[381440827,1756198250508,-529.41,0.00041369,30]
[381440828,1756198250518,-560.0,0.00041369,30]
[381440829,1756198250528,-1258.99,0.00041369,30]
[381440830,1756198250538,-480.0,0.00041369,30]
[381440831,1756198250548,-480.0,0.00041369,30]
[381440832,1756198250557,-480.0,0.00041369,30]
[381440833,1756198250567,-480.0,0.00041369,30]
[381440834,1756198250577,-480.0,0.00041369,30]
[381440835,1756198250586,-480.0,0.00041369,30]
[381440836,1756198250595,-480.0,0.00041369,30]
[381440837,1756198250605,-480.0,0.00041369,30]
[381440838,1756198250614,-480.0,0.00041369,30]
[381440839,1756198250623,-1430.69,0.00041369,30]
[381440840,1756198250633,-480.0,0.00041369,30]
[381440841,1756198250642,-480.0,0.00041369,30]
[381440842,1756198250652,-480.0,0.00041369,30]
[381440843,1756198250661,-480.0,0.00041369,30]
[381440844,1756198250671,-480.0,0.00041369,30]
[381440845,1756198250680,-480.0,0.00041369,30]
[381440846,1756198250690,-480.0,0.00041369,30]
[381440847,1756198250700,-480.0,0.00041369,30]
[381440848,1756198250711,-737.92,0.00041369,30]
[381440849,1756198250721,-480.0,0.00041369,30]
[381440850,1756198250731,-1011.04,0.00041369,30]
[381440851,1756198250741,-480.0,0.00041369,30]
[381440852,1756198250751,-480.0,0.00041369,30]
[381440853,1756198250760,-200.0,0.00041369,30]
[381440854,1756198250770,-480.0,0.00041369,30]
[381440855,1756198250780,-999.09,0.00041369,30]
[381440856,1756198250790,-480.0,0.00041369,30]
[381440857,1756198250799,-1446.57,0.00041369,30]
[381440858,1756198250809,-686.73,0.00041369,30]
[381440859,1756198250820,-813.38,0.00041369,30]
[381440860,1756198250830,-513.15,0.00041369,30]
[381440861,1756198250840,-480.0,0.00041369,30]
[381440862,1756198250849,-480.08,0.00041369,30]
[381440863,1756198250859,-480.0,0.00041369,30]
[381440864,1756198250869,-480.0,0.00041369,30]
[381440865,1756198250879,-2066.61,0.00041369,30]
[381440866,1756198250891,-867.58,0.00041369,30]
[381440867,1756198250900,-480.0,0.00041369,30]
[381440868,1756198250910,-480.0,0.00041369,30]
[381440869,1756198250920,-1244.82,0.00041369,30]
[381440870,1756198250930,-579.61,0.00041369,30]
[381440871,1756198250940,-860.46,0.00041369,30]
[381440872,1756198250951,-1966.34,0.00041369,30]
[381440873,1756198250962,-799.77,0.00041369,30]
[381440874,1756198250974,-292.14019309,0.00041369,30]
[381440875,1756198250983,-680.12,0.00041369,30]
[381440876,1756198250993,-480.0,0.00041369,30]
[381440877,1756198251003,-480.0,0.00041369,30]
[381440878,1756198251013,-3885.88,0.00041369,30]
[381440879,1756198251022,-480.0,0.00041369,30]
[381440880,1756198251032,-480.0,0.00041369,30]
[381440881,1756198251042,-192.86904177,0.00041369,30]
[381440882,1756198251052,-480.0,0.00041369,30]
[381440883,1756198251062,-480.0,0.00041369,30]
[381440884,1756198251072,-961.44,0.00041369,30]
[381440885,1756198251082,-480.0,0.00041369,30]
[381440886,1756198251092,-480.0,0.00041369,30]
[381440887,1756198251102,-480.0,0.00041369,30]
[381440888,1756198251112,-254.30866992,0.00041369,30]
[381440889,1756198251122,-503.69,0.00041369,30]
[381440890,1756198251133,-554.55,0.00041369,30]
[381440891,1756198251349,-745.34,0.00041369,30]
[381440892,1756198251367,-2596.81,0.00041369,30]
[381440893,1756198251376,-480.0,0.00041369,30]
[381440894,1756198251385,-694.04,0.00041369,30]
[381440895,1756198251394,-480.0,0.00041369,30]
[381440896,1756198251404,-735.6,0.00041369,30]
[381440897,1756198251413,-5716.47,0.00041369,30]
[381440898,1756198251423,-1702.95,0.00041369,30]
[381440899,1756198251437,-392.14638553,0.00041369,30]
[381440900,1756198251446,-480.0,0.00041369,30]
[381440901,1756198251456,-261.04964131,0.00041369,30]
[381440902,1756198251465,-1002.02,0.00041369,30]
[381440903,1756198251475,-699.88,0.00041369,30]
[381440904,1756198251485,-886.14,0.00041369,30]
[381440905,1756198251494,-480.0,0.00041369,30]
[381440906,1756198251503,-530.4,0.00041369,30]
[381440907,1756198251513,-799.0,0.00041369,30]
[381440908,1756198251523,-480.0,0.00041369,30]
[381440909,1756198251532,-946.85,0.00041369,30]
[381440910,1756198251542,-1113.55,0.00041369,30]
[381440911,1756198251551,-480.0,0.00041369,30]
[381440912,1756198251561,-480.0,0.00041369,30]
[381440913,1756198251573,-574.83,0.00041369,30]
[381440914,1756198251583,-480.0,0.00041369,30]
[381440915,1756198251592,-556.37,0.00041369,30]
[381440916,1756198251602,-480.0,0.00041369,30]
[381440917,1756198251611,-480.0,0.00041369,30]
[381440918,1756198251620,-480.0,0.00041369,30]
[381440919,1756198251630,-660.11,0.00041369,30]
[381440920,1756198251639,-480.0,0.00041369,30]
[381440921,1756198251649,-1039.38,0.00041369,30]
[381440922,1756198251658,-1745.23,0.00041369,30]
[381440923,1756198251668,-480.0,0.00041369,30]
[381440924,1756198251677,-967.77,0.00041369,30]
[381440925,1756198251687,-2671.85,0.00041369,30]
[381440926,1756198251697,-480.0,0.00041369,30]
[381440927,1756198251707,-480.0,0.00041369,30]
[381440928,1756198251716,-742.18,0.00041369,30]
[381440929,1756198251726,-480.0,0.00041369,30]
[381440930,1756198251739,-480.0,0.00041369,30]
[381440931,1756198251748,-480.0,0.00041369,30]
[381440932,1756198251758,-1432.12,0.00041369,30]
[381440933,1756198251767,-1544.88,0.00041369,30]
[381440934,1756198251777,-480.0,0.00041369,30]
[381440935,1756198251786,-863.92,0.00041369,30]
[381440936,1756198251796,-713.0,0.00041369,30]
[381440937,1756198251805,-922.89,0.00041369,30]
[381440938,1756198251815,-480.0,0.00041369,30]
[381440939,1756198251825,-480.0,0.00041369,30]
[381440940,1756198251835,-480.0,0.00041369,30]
[381440941,1756198251844,-1696.82,0.00041369,30]
[381440942,1756198251854,-480.0,0.00041369,30]
[381440943,1756198251863,-1115.5,0.00041369,30]
[381440944,1756198251873,-480.0,0.00041369,30]
[381440945,1756198251884,-591.73,0.00041369,30]
[381440946,1756198251895,-480.0,0.00041369,30]
[381440947,1756198251905,-480.0,0.00041369,30]
[381440948,1756198251914,-672.67,0.00041369,30]
[381440949,1756198251924,-480.0,0.00041369,30]
[381440950,1756198251933,-631.4,0.00041369,30]
[381440951,1756198251943,-1157.35,0.00041369,30]
[381440952,1756198251952,-480.0,0.00041369,30]
[381440953,1756198251964,-992.28,0.00041369,30]
[381440954,1756198251973,-1500.0,0.00041369,28]
[381440955,1756198251983,-1500.0,0.00041369,28]
[381440956,1756198251992,-577.08,0.00041369,14]
[381440957,1756198252002,-480.0,0.00041369,30]
[381440958,1756198252012,-1500.0,0.00041369,28]
[381440959,1756198252022,-1500.0,0.00041369,28]
[381440960,1756198252031,-1500.0,0.00041369,28]
[381440961,1756198252041,-480.0,0.00041369,30]
[381440962,1756198252051,-1500.0,0.00041369,28]
[381440963,1756198252060,-1500.0,0.00041369,28]
[381440964,1756198252069,-1500.0,0.00041369,28]
[381440965,1756198252078,-1500.0,0.00041369,28]
[381440966,1756198252088,-1040.12,0.00041369,30]
[381440967,1756198252097,-1616.619519,0.00041369,28]
[381440968,1756198252106,-480.0,0.00041369,30]
[381440969,1756198252116,-480.0,0.00041369,30]
[381440970,1756198252125,-873.79,0.00041369,30]
[381440971,1756198252134,-480.0,0.00041369,30]
[381440972,1756198252144,-480.0,0.00041369,30]
[381440973,1756198252153,-539.39,0.00041369,30]
[381440975,1756198252162,-610.43,0.00041369,30]
[381440977,1756198252171,-480.0,0.00041369,30]
[381440979,1756198252180,-480.0,0.00041369,30]
[381440981,1756198252190,-480.0,0.00041369,30]
[381440983,1756198252199,-480.0,0.00041369,30]
[381440985,1756198252208,-480.0,0.00041369,30]
[381440987,1756198252217,-632.2,0.00041369,30]
[381440989,1756198252227,-480.0,0.00041369,30]
[381440991,1756198252236,-480.0,0.00041369,30]
[381440993,1756198252246,-503.88,0.00041369,30]
[381440995,1756198252255,-759.18,0.00041369,30]
[381440996,1756198252265,-865.58,0.00041369,30]
[381440997,1756198252274,-480.0,0.00041369,30]
[381440998,1756198252284,-480.0,0.00041369,30]
[381440999,1756198252293,-516.65,0.00041369,30]
[381441000,1756198252306,-813.36,0.00041369,30]
[381441001,1756198252316,-1283.57,0.00041369,30]
[381441002,1756198252326,-480.0,0.00041369,30]
[381441003,1756198252337,-1702.05,0.00041369,30]
[381441004,1756198252348,-480.0,0.00041369,30]
[381441005,1756198252358,-480.0,0.00041369,30]
[381441006,1756198252369,-1191.93,0.00041369,30]
[381441007,1756198252378,-675.73,0.00041369,30]
[381441008,1756198252388,-480.0,0.00041369,30]
[381441009,1756198252397,-1180.89,0.00041369,30]
[381441010,1756198252406,-480.0,0.00041369,30]
[381441011,1756198252417,-480.0,0.00041369,30]
[381441012,1756198252427,-480.0,0.00041369,30]
[381441013,1756198252437,-1816.32,0.00041369,30]
[381441014,1756198252446,-1465.02,0.00041369,30]
[381441015,1756198252457,-480.0,0.00041369,30]
[381441016,1756198252468,-796.62,0.00041369,30]
[381441017,1756198252477,-647.94,0.00041369,30]
[381441018,1756198252488,-480.0,0.00041369,30]
[381441019,1756198252497,-1774.54,0.00041369,30]
[381441020,1756198252507,-953.95,0.00041369,30]
[381441021,1756198252516,-480.0,0.00041369,30]
[381441022,1756198252526,-480.0,0.00041369,30]
[381441023,1756198252536,-588.7,0.00041369,30]
[381441024,1756198252546,-709.52,0.00041369,30]
[381441025,1756198252555,-600.14,0.00041369,30]
[381441026,1756198252565,-2368.73,0.00041369,30]
[381441027,1756198252574,-1222.61,0.00041369,30]
[381441028,1756198252583,-707.33,0.00041369,30]
[381441029,1756198252593,-522.98,0.00041369,30]
[381441030,1756198252603,-827.07,0.00041369,30]
[381441031,1756198252612,-480.0,0.00041369,30]
[381441032,1756198252621,-480.0,0.00041369,30]
[381441033,1756198252631,-586.91,0.00041369,30]
[381441034,1756198252640,-480.0,0.00041369,30]
[381441035,1756198252649,-480.0,0.00041369,30]
[381441036,1756198252660,-480.0,0.00041369,30]
[381441037,1756198252670,-1055.57,0.00041369,30]
[381441038,1756198252680,-1270.58,0.00041369,30]
[381441039,1756198252689,-482.42,0.00041369,30]
[381441040,1756198252698,-629.35,0.00041369,30]
[381441041,1756198252709,-480.0,0.00041369,30]
[381441042,1756198252718,-480.0,0.00041369,30]
[381441043,1756198252728,-2319.39,0.00041369,30]
[381441044,1756198252737,-480.0,0.00041369,30]
[381441045,1756198252747,-480.0,0.00041369,30]
[381441046,1756198252756,-480.0,0.00041369,30]
[381441047,1756198252766,-640.16,0.00041369,30]
[381441048,1756198252776,-9938.1,0.00041369,30]
[381441049,1756198252785,-480.0,0.00041369,30]
[381441050,1756198252794,-853.3,0.00041369,30]
[381441051,1756198252804,-480.0,0.00041369,30]
[381441052,1756198252814,-480.0,0.00041369,30]
[381441053,1756198252823,-480.0,0.00041369,30]
[381441054,1756198252833,-846.48,0.00041369,30]
[381441055,1756198252843,-480.0,0.00041369,7]
[381441056,1756198252852,-2893.16,0.00041369,30]
[381441057,1756198252862,-1930.96,0.00041369,30]
[381441058,1756198252872,-480.0,0.00041369,30]
[381441059,1756198252886,-480.0,0.00041369,30]
[381441060,1756198252899,-677.73,0.00041369,30]
[381441061,1756198252909,-480.0,0.00041369,30]
[381441062,1756198252918,-480.0,0.00041369,30]
[381441063,1756198252929,-606.55,0.00041369,30]
[381441064,1756198252938,-1573.81,0.00041369,30]
[381441065,1756198252948,-480.0,0.00041369,30]
[381441066,1756198252958,-610.86,0.00041369,30]
[381441067,1756198252968,-559.17,0.00041369,30]
[381441068,1756198252977,-480.0,0.00041369,30]
[381441069,1756198252987,-3606.96,0.00041369,30]
[381441070,1756198252997,-2102.38,0.00041369,30]
[381441071,1756198253007,-549.81,0.00041369,30]
[381441072,1756198253016,-604.01,0.00041369,30]
[381441073,1756198253026,-480.0,0.00041369,30]
[381441074,1756198253035,-486.11,0.00041369,30]
[381441075,1756198253045,-480.0,0.00041369,30]
[381441076,1756198253055,-480.0,0.00041369,30]
[381441077,1756198253064,-480.0,0.00041369,30]
[381441078,1756198253073,-863.34,0.00041369,30]
[381441079,1756198253082,-480.0,0.00041369,30]
[381441080,1756198253092,-1816.68,0.00041369,30]
[381441081,1756198253101,-480.0,0.00041369,30]
[381441082,1756198253112,-1257.7,0.00041369,30]
[381441083,1756198253122,-480.0,0.00041369,30]
[381441084,1756198253132,-480.0,0.00041369,7]
[381441085,1756198253141,-480.0,0.00041369,30]
[381441086,1756198253151,-480.0,0.00041369,30]
[381441087,1756198253162,-3851.02,0.00041369,30]
[381441088,1756198253171,-2526.12,0.00041369,30]
[381441089,1756198253182,-480.0,0.00041369,30]
[381441090,1756198253192,-755.71,0.00041369,30]
[381441091,1756198253203,-873.65,0.00041369,30]
[381441092,1756198253213,-7273.32,0.00041369,3]
[381441093,1756198253222,-576.52,0.00041369,30]
[381441094,1756198253231,-480.0,0.00041369,30]
[381441095,1756198253241,-685.71,0.00041369,30]
[381441096,1756198253250,-513.23,0.00041369,30]
[381441097,1756198253260,-614.18,0.00041369,30]
[381441098,1756198253270,-708.58,0.00041369,30]
[381441099,1756198253279,-480.0,0.00041369,30]
[381441100,1756198253289,-480.0,0.00041369,30]
[381441101,1756198253299,-913.61,0.00041369,30]
[381441102,1756198253312,-480.0,0.00041369,30]
[381441103,1756198253321,-1761.61,0.00041369,30]
[381441104,1756198253331,-888.58,0.00041369,30]
[381441105,1756198253340,-1418.3,0.00041369,30]
[381441106,1756198253350,-480.0,0.00041369,30]
[381441107,1756198253359,-466.66259869,0.00041369,30]
[381441108,1756198253368,-1294.36,0.00041369,30]
[381441109,1756198253378,-1153.41,0.00041369,30]
[381441110,1756198253387,-743.26,0.00041369,30]
[381441111,1756198253397,-480.0,0.00041369,30]
[381441112,1756198253406,-6193.18,0.00041369,30]
[381441113,1756198253415,-534.54,0.00041369,30]
[381441114,1756198253424,-480.0,0.00041369,30]
[381441115,1756198253434,-1098.46,0.00041369,30]
[381441116,1756198253443,-2701.92,0.00041369,30]
[381441117,1756198253452,-480.0,0.00041369,30]
[381441119,1756198253462,-3048.03,0.00041369,30]
[381441121,1756198253471,-480.0,0.00041369,30]
[381441123,1756198253480,-4658.7,0.00041369,30]
[381441125,1756198253489,-814.6,0.00041369,30]
[381441126,1756198253499,-480.0,0.00041369,30]
[381441127,1756198253508,-480.0,0.00041369,30]